bitfinex-derivatives/quotes_SOLF0:USTF0_20260218
["timestamp","ask_amount","ask_price","bid_price","bid_amount"]
[1771430001673,10.8407,83.05,83.013,75.56]
[1771430001873,6.702267,83.059,83.006,6.41577595]
[1771430002070,6.702267,83.059,83.006,81.97577595]
[1771430002468,10.8428,83.033,83.001,75.56]
[1771430002976,10.8406,83.051,83.002,6.41577595]
[1771430003670,10.838,83.07,83.024,6.41577595]
[1771430003862,6.702267,83.092,83.025,75.56]
[1771430004267,6.702267,83.07,82.991,6.41577595]
[1771430004471,6.702267,83.059,82.993,6.41577595]
[1771430005472,6.702267,83.059,82.997,6.41577595]
[1771430005473,10.8411,83.047,82.997,6.41577595]
[1771430006081,10.8418,83.041,82.999,6.41577595]
[1771430006473,10.8418,83.041,83.001,6.41577595]
[1771430006873,10.8418,83.041,83.002,75.56]
[1771430007277,10.8418,83.041,83.002,81.97577595]
[1771430007479,10.8418,83.041,83.003,6.41577595]
[1771430007674,10.8404,83.052,83.007,6.41577595]
[1771430007869,6.702267,83.059,83.007,6.41577595]
[1771430008272,10.8417,83.042,83.007,6.41577595]
[1771430008877,10.8417,83.042,83.007,81.97577595]
[1771430009071,6.702267,83.059,83.007,6.41577595]
[1771430009987,10.8402,83.053,83.007,17.26187595]
[1771430010173,10.8402,83.053,83.008,6.41577595]
[1771430010373,15.55003034,83.078,83.011,6.41577595]
[1771430010578,6.702267,83.078,83.011,6.41577595]
[1771430010783,10.8377,83.073,83.017,10.8448]
[1771430011184,10.8377,83.073,83.018,6.41577595]
[1771430011386,10.8377,83.073,83.02,10.8444]
[1771430011579,10.8377,83.073,83.02,17.26017595]
[1771430012084,6.702267,83.078,83.025,10.8438]
[1771430012276,6.702267,83.078,82.997,11.98]
[1771430012277,6.702267,83.078,83.026,75.56]
[1771430012583,10.8405,83.051,83.005,6.41577595]
[1771430012886,6.702267,83.054,83.013,75.56]
[1771430013284,17.542467,83.054,83.013,75.56]
[1771430014084,10.8378,83.072,83.014,6.41577595]
[1771430014588,6.702267,83.073,83.016,6.41577595]
[1771430014886,6.702267,83.073,83.017,75.58]
[1771430015081,6.21214672,83.09,83.018,6.41577595]
[1771430015282,6.702267,83.092,83.03,6.21214672]
[1771430015483,6.702267,83.092,83.032,6.41577595]
[1771430015785,6.21214672,83.07,82.997,6.41577595]
[1771430016081,6.21214672,83.07,82.963,298.0]
[1771430016082,6.702267,83.068,82.999,6.41577595]
[1771430016283,10.8414,83.044,82.999,6.41577595]
[1771430016476,6.702267,83.066,82.999,6.41577595]
[1771430016880,6.702267,83.064,82.999,6.41577595]
[1771430017086,10.8414,83.044,83.0,75.58]
[1771430017789,10.8404,83.052,83.0,81.99577595]
[1771430018087,6.702267,83.062,83.0,81.99577595]
[1771430018387,10.8424,83.037,83.001,75.58]
[1771430019287,10.8424,83.037,83.0,6.41577595]
[1771430019681,10.8424,83.037,83.0,81.99577595]
[1771430020379,6.702267,83.06,83.001,6.41577595]
[1771430020579,6.702267,83.076,83.003,6.41577595]
[1771430020786,9.09225884,83.075,83.003,6.41577595]
[1771430021087,6.702267,83.076,83.004,6.41577595]
[1771430021088,10.8388,83.064,83.004,6.41577595]
[1771430021287,6.702267,83.076,83.004,6.41577595]
[1771430021483,9.09242473,83.075,83.004,6.41577595]
[1771430021687,10.8387,83.065,83.009,6.41577595]
[1771430022083,6.702267,83.076,83.009,6.41577595]
[1771430022387,10.8373,83.076,83.026,10.8436]
[1771430022585,10.8373,83.076,83.02,6.21214672]
[1771430022586,10.8373,83.076,83.027,81.99577595]
[1771430022888,10.8383,83.068,83.027,6.41577595]
[1771430023085,10.8383,83.068,83.028,75.58]
[1771430023487,6.702267,83.092,83.029,6.41577595]
[1771430023691,10.8372,83.077,83.029,6.41577595]
[1771430023986,21.666,83.109,83.001,36.05]
[1771430023987,6.702267,83.119,83.041,6.41577595]
[1771430024185,6.702267,83.117,83.041,6.41577595]
[1771430024384,6.702267,83.115,83.041,6.41577595]
[1771430024584,6.702267,83.113,83.041,6.41577595]
[1771430024780,6.702267,83.111,83.041,6.41577595]
[1771430024981,15.528753,83.11,83.041,6.41577595]
[1771430025186,15.528753,83.109,83.041,6.41577595]
[1771430025382,15.528753,83.108,83.041,6.41577595]
[1771430025590,6.43992056,83.106,83.041,6.41577595]
[1771430025790,9.08883244,83.105,83.041,6.41577595]
[1771430026091,9.08883244,83.104,83.041,6.41577595]
[1771430026286,9.08883244,83.103,83.041,6.41577595]
[1771430026487,9.08883244,83.102,83.041,6.41577595]
[1771430026687,10.8346,83.096,83.041,6.41577595]
[1771430026886,6.43992056,83.106,83.041,6.41577595]
[1771430027094,15.52495712,83.105,83.041,6.41577595]
[1771430027294,9.08503656,83.104,83.041,6.41577595]
[1771430027493,9.08503656,83.103,83.041,6.41577595]
[1771430027696,10.8355,83.09,83.041,6.41577595]
[1771430027989,10.8355,83.09,83.043,6.56889313]
[1771430028198,6.43992056,83.105,83.03,6.21214672]
[1771430028199,6.43992056,83.105,83.045,6.56889313]
[1771430028489,10.8345,83.097,83.045,6.56889313]
[1771430029290,10.8345,83.097,83.042,75.58]
[1771430029291,10.8336,83.104,83.053,6.56889313]
[1771430029491,6.43992056,83.125,83.053,6.56889313]
[1771430029791,9.07891192,83.124,83.055,6.56889313]
[1771430029982,6.43992056,83.125,83.055,6.56889313]
[1771430030590,10.831,83.124,83.077,6.56889313]
[1771430031190,6.43992056,83.125,83.078,17.40569313]
[1771430031591,6.43992056,83.125,83.079,6.56889313]
[1771430031986,6.43992056,83.125,83.07,6.21214672]
[1771430031987,10.8298,83.133,83.083,6.56889313]
[1771430032391,10.8298,83.133,83.085,6.56889313]
[1771430032594,5.0,83.135,83.089,6.56889313]
[1771430033798,10.8302,83.131,83.084,75.6]
[1771430034296,10.8302,83.131,83.085,75.58]
[1771430034495,10.8315,83.12,83.077,6.56889313]
[1771430034697,6.43992056,83.119,83.06,6.56889313]
[1771430034889,6.43992056,83.119,83.061,75.6]
[1771430035700,10.8334,83.106,83.061,75.6]
[1771430036291,10.8334,83.106,83.062,75.58]
[1771430037299,10.8334,83.106,83.06,6.56889313]
[1771430037604,10.8323,83.114,83.063,17.40779313]
[1771430037895,6.43992056,83.119,83.03,6.21214672]
[1771430038101,6.01699955,83.09,83.031,75.58]
[1771430038297,6.01699955,83.09,83.032,6.19337143]
[1771430038499,10.8363,83.083,83.036,10.8424]
[1771430038700,6.01699955,83.09,83.037,6.19337143]
[1771430039605,6.01699955,83.09,83.038,81.77337143]
[1771430039804,16.85239955,83.09,83.041,10.8417]
[1771430040201,10.8342,83.099,83.05,6.19337143]
[1771430040804,6.01699955,83.108,83.05,6.19337143]
[1771430041107,10.8341,83.1,83.05,6.19337143]
[1771430041506,10.8349,83.094,83.05,6.19337143]
[1771430041706,6.01699955,83.108,83.051,10.8404]
[1771430041908,6.01699955,83.108,83.05,6.19337143]
[1771430042405,6.01699955,83.108,83.018,6.19337143]
[1771430042612,5.0,83.135,83.014,6.19337143]
[1771430042613,6.21214672,83.08,83.014,6.19337143]
[1771430042806,6.01699955,83.079,83.014,6.19337143]
[1771430043001,6.01699955,83.068,83.014,6.19337143]
[1771430043399,6.01699955,83.068,83.015,75.6]
[1771430043606,6.01699955,83.068,83.015,81.79337143]
[1771430044207,6.01699955,83.068,83.016,6.19337143]
[1771430045506,6.01699955,83.061,82.991,6.19337143]
[1771430045705,6.01699955,83.059,82.992,75.6]
[1771430045906,6.01699955,83.059,82.999,10.8471]
[1771430046306,6.01699955,83.059,83.0,6.19337143]
[1771430046515,6.21214672,83.07,83.018,10.8447]
[1771430047409,10.8383,83.068,83.016,6.19337143]
[1771430047619,10.8383,83.068,83.017,75.6]
[1771430048410,10.8383,83.068,83.018,10.8447]
[1771430048712,6.01699955,83.067,83.0,6.19337143]
[1771430048910,12.22914627,83.05,83.001,75.6]
[1771430049314,11.23308367,83.089,82.946,179.23978843]
[1771430049315,6.21214672,83.03,82.983,6.19337143]
[1771430050213,6.21214672,83.05,82.983,6.19337143]
[1771430050414,12.22914627,83.05,82.985,6.19337143]
[1771430050609,12.22914627,83.05,82.986,6.19337143]
[1771430050807,6.01699955,83.049,82.986,6.19337143]
[1771430051206,10.842,83.039,82.986,6.19337143]
[1771430051508,6.01699955,83.049,82.986,6.19337143]
[1771430051915,10.8431,83.031,82.986,6.19337143]
[1771430053411,6.01699955,83.031,82.976,6.19337143]
[1771430053815,6.01699955,83.031,82.975,80.66176559]
[1771430053816,6.01699955,83.031,82.977,81.79337143]
[1771430054006,10.8432,83.03,82.978,75.6]
[1771430054210,6.21214672,83.03,82.977,6.19337143]
[1771430054413,6.01699955,83.029,82.975,5.06176559]
[1771430055614,10.8454,83.013,82.975,5.06176559]
[1771430055812,6.09295043,83.048,82.976,5.85572221]
[1771430056015,6.09295043,83.048,82.989,5.85572221]
[1771430056216,6.09295043,83.065,82.991,5.85572221]
[1771430056417,6.09295043,83.065,82.992,75.6]
[1771430056916,6.09295043,83.065,82.993,5.85572221]
[1771430057116,6.09295043,83.065,82.994,5.85572221]
[1771430058116,6.09295043,83.065,82.98,6.21214672]
[1771430058117,6.09295043,83.065,82.996,5.85572221]
[1771430058515,6.09295043,83.065,83.0,6.21214672]
[1771430058720,6.09295043,83.083,83.001,5.85572221]
[1771430059016,10.839,83.062,83.011,5.85572221]
[1771430059821,6.09295043,83.101,83.021,5.85572221]
[1771430060017,6.09295043,83.101,83.02,6.21214672]
[1771430060018,6.09295043,83.101,83.022,75.6]
[1771430060216,6.09295043,83.089,83.023,5.85572221]
[1771430060411,6.09295043,83.089,83.025,5.85572221]
[1771430060918,6.09295043,83.089,83.02,6.21214672]
[1771430060919,6.09295043,83.089,83.027,5.85572221]
[1771430061115,6.09295043,83.116,83.03,5.85572221]
[1771430061320,255.66142535,83.145,83.02,6.21214672]
[1771430061321,6.09295043,83.109,83.032,5.85572221]
[1771430061521,6.09295043,83.109,83.0,6.21214672]
[1771430061522,6.09295043,83.109,83.041,5.85572221]
[1771430061827,6.09295043,83.109,83.04,6.21214672]
[1771430061828,6.09295043,83.109,83.055,5.85572221]
[1771430062025,6.09295043,83.109,83.056,75.6]
[1771430062323,16.92595043,83.109,83.056,81.45572221]
[1771430062524,16.92595043,83.109,83.057,5.85572221]
[1771430063120,10.8343,83.098,83.057,5.85572221]
[1771430063820,10.8355,83.09,83.057,5.85572221]
[1771430064024,10.8355,83.09,83.04,6.21214672]
[1771430064025,6.09295043,83.109,83.047,75.6]
[1771430064919,6.09295043,83.109,83.041,75.62]
[1771430065321,6.09295043,83.107,83.042,5.85572221]
[1771430066024,6.09295043,83.107,83.043,75.62]
[1771430066216,6.09295043,83.107,83.043,81.47572221]
[1771430066823,6.09295043,83.105,83.043,81.47572221]
[1771430067834,6.09295043,83.103,83.043,81.47572221]
[1771430068425,6.09295043,83.12,83.051,5.85572221]
[1771430068622,6.09295043,83.12,83.053,5.85572221]
[1771430068820,10.8316,83.119,83.054,10.84]
[1771430069024,10.8316,83.119,83.056,5.85572221]
[1771430069433,10.8304,83.129,83.06,5.85572221]
[1771430069623,6.09295043,83.134,83.062,5.85572221]
[1771430070024,10.8305,83.128,83.062,5.85572221]
[1771430070226,6.09295043,83.134,83.071,5.85572221]
[1771430070521,14.92142535,83.179,83.071,5.85572221]
[1771430070522,6.09295043,83.153,83.072,75.62]
[1771430070721,9.00016088,83.172,83.088,5.85572221]
[1771430071033,9.00016088,83.172,83.05,6.21214672]
[1771430071034,6.09295043,83.171,83.091,5.85572221]
[1771430071326,10.8261,83.162,83.094,5.85572221]
[1771430072230,6.09295043,83.171,83.096,5.85572221]
[1771430072231,10.8273,83.152,83.096,5.85572221]
[1771430073226,10.8273,83.152,83.097,75.62]
[1771430073430,10.8261,83.161,83.101,5.85572221]
[1771430073635,6.09295043,83.171,83.103,5.85572221]
[1771430073832,10.8284,83.144,83.103,5.85572221]
[1771430074129,189.9741,83.199,83.085,5.85572221]
[1771430074130,6.09295043,83.149,83.085,5.85572221]
[1771430074931,10.8295,83.135,83.085,5.85572221]
[1771430075435,6.09295043,83.149,83.085,5.85572221]
[1771430075635,10.8285,83.144,83.088,5.85572221]
[1771430075933,10.8285,83.144,83.09,5.85572221]
[1771430076234,6.09295043,83.149,83.09,5.85572221]
[1771430076731,10.8309,83.125,83.09,5.85572221]
[1771430076932,6.09295043,83.149,83.071,5.85572221]
[1771430077436,6.09295043,83.141,83.071,5.85572221]
[1771430078030,6.09295043,83.137,83.071,5.85572221]
[1771430078425,6.09295043,83.128,83.071,5.85572221]
[1771430083942,10.8283,83.145,83.071,5.85572221]
[1771430083943,16.92125043,83.145,83.071,5.85572221]
[1771430084237,6.09295043,83.144,83.071,5.85572221]
[1771430084437,6.09295043,83.132,83.071,5.85572221]
[1771430086138,6.22537539,83.129,83.071,5.85572221]
[1771430086735,6.22537539,83.129,83.06,6.20043108]
[1771430086940,6.20043108,83.13,83.054,5.73957392]
[1771430086941,6.22537539,83.115,83.054,5.73957392]
[1771430087144,6.22537539,83.129,83.054,5.73957392]
[1771430087351,6.22537539,83.129,83.048,75.62]
[1771430087352,6.22537539,83.129,83.071,5.73957392]
[1771430087537,10.83,83.131,83.071,5.73957392]
[1771430088243,75.62,83.159,83.071,5.73957392]
[1771430088543,6.22537539,83.161,83.091,5.73957392]
[1771430090435,10.8283,83.145,83.091,5.73957392]
[1771430091445,10.8272,83.153,83.091,5.73957392]
[1771430091644,6.22537539,83.161,83.093,5.73957392]
[1771430091848,10.8263,83.16,83.093,5.73957392]
[1771430093444,10.8263,83.16,83.094,5.73957392]
[1771430093850,17.05167539,83.16,83.094,5.73957392]
[1771430094349,6.22537539,83.155,83.094,5.73957392]
[1771430095148,10.8271,83.154,83.095,10.8347]
[1771430095449,10.8271,83.154,83.096,5.73957392]
[1771430095650,6.22537539,83.153,83.096,5.73957392]
[1771430096349,6.22537539,83.161,83.099,5.73957392]
[1771430097237,6.22537539,83.161,83.108,10.833]
[1771430098248,6.22537539,83.161,83.114,10.8322]
[1771430098450,6.22537539,83.161,83.115,6.03998659]
[1771430099753,6.22537539,83.161,83.116,10.8319]
[1771430100162,5.9008607,83.179,83.125,6.03998659]
[1771430100450,5.9008607,83.193,83.131,6.03998659]
[1771430100647,5.9008607,83.193,83.132,6.03998659]
[1771430100846,5.9008607,83.193,83.149,10.8276]
[1771430101253,5.9008607,83.193,83.147,6.03998659]
[1771430101554,5.9008607,83.193,83.149,10.8276]
[1771430101755,5.9008607,83.193,83.105,12.03]
[1771430101756,5.9008607,83.184,83.131,6.03998659]
[1771430101950,5.9008607,83.184,83.121,6.03998659]
[1771430102346,5.9008607,83.184,83.135,10.8295]
[1771430103150,5.9008607,83.2,83.135,6.03998659]
[1771430103551,10.9008607,83.185,83.135,6.03998659]
[1771430103754,10.9008607,83.185,83.11,6.20043108]
[1771430103755,5.9008607,83.184,83.11,6.20043108]
[1771430103951,5.9008607,83.184,83.111,6.03998659]
[1771430104656,5.9008607,83.184,83.137,10.8292]
[1771430105158,5.9008607,83.184,83.149,10.8276]
[1771430105457,5.9008607,83.184,83.132,6.03998659]
[1771430106055,5.9008607,83.184,83.15,10.8274]
[1771430106951,5.9008607,83.184,83.132,6.03998659]
[1771430107852,5.0,83.185,83.132,6.03998659]
[1771430108655,5.9008607,83.2,83.132,6.03998659]
[1771430109761,5.9008607,83.2,83.152,10.8272]
[1771430111962,5.9008607,83.2,83.13,6.20043108]
[1771430111963,2.08125302,83.19,83.158,10.8265]
[1771430112262,7.98211372,83.2,83.158,10.8265]
[1771430112560,6.14378055,83.197,83.141,5.95902804]
[1771430112755,2.08125302,83.18,83.131,5.95902804]
[1771430112952,2.08125302,83.19,83.131,5.95902804]
[1771430113257,8.22503357,83.19,83.142,10.8285]
[1771430113456,8.22503357,83.19,83.14,2.08125302]
[1771430113762,8.22503357,83.19,83.141,5.95902804]
[1771430114862,8.22503357,83.19,83.156,10.8268]
[1771430115263,8.22503357,83.19,83.141,5.95902804]
[1771430115960,2.08125302,83.19,83.141,5.95902804]
[1771430116163,10.8206,83.204,83.151,5.71803441]
[1771430116164,2.08125302,83.2,83.151,5.71803441]
[1771430117358,7.88426122,83.2,83.151,5.71803441]
[1771430117664,2.08125302,83.19,83.151,5.71803441]
[1771430118568,2.08125302,83.17,83.118,5.71803441]
[1771430118865,5.8030082,83.179,83.121,5.71803441]
[1771430119365,5.8030082,83.179,83.123,5.71803441]
[1771430119553,5.8030082,83.179,83.13,2.08125302]
[1771430120860,12.90365302,83.19,83.14,7.79928743]
[1771430121256,7.88426122,83.19,83.141,5.71803441]
[1771430122666,2.08125302,83.18,83.141,5.71803441]
[1771430124565,2.08125302,83.2,83.15,7.79928743]
[1771430124771,5.8030082,83.204,83.151,5.71803441]
[1771430125069,8.954071,83.22,83.151,5.71803441]
[1771430125264,8.954071,83.22,83.116,36.05]
[1771430125265,2.08125302,83.21,83.165,5.71803441]
[1771430125565,2.08125302,83.2,83.165,5.71803441]
[1771430125762,5.8030082,83.219,83.165,16.54353441]
[1771430125763,2.08125302,83.21,83.165,16.54353441]
[1771430125959,2.08125302,83.2,83.165,16.54353441]
[1771430126864,2.08125302,83.21,83.165,16.54353441]
[1771430127466,2.08125302,83.2,83.15,5.71803441]
[1771430127671,5.8030082,83.199,83.15,7.79928743]
[1771430128370,5.8030082,83.199,83.157,10.8266]
[1771430128671,2.08125302,83.17,83.13,5.71803441]
[1771430128873,5.8030082,83.179,83.13,7.79928743]
[1771430129765,2.08125302,83.17,83.12,2.08125302]
[1771430130070,5.8030082,83.174,83.115,5.71803441]
[1771430131068,10.8265,83.158,83.117,10.8317]
[1771430131267,6.19746139,83.17,83.117,10.8317]
[1771430131268,5.8030082,83.169,83.117,10.8317]
[1771430132773,10.8255,83.166,83.117,10.8317]
[1771430132975,16.6285082,83.166,83.117,10.8317]
[1771430133367,5.8030082,83.166,83.117,10.8317]
[1771430133971,5.8030082,83.166,83.125,10.8308]
[1771430137473,5.74055685,83.192,83.133,6.13612991]
[1771430137672,5.74055685,83.19,83.111,6.13612991]
[1771430137869,6.19856272,83.18,83.111,6.13612991]
[1771430138076,5.74055685,83.178,83.111,6.13612991]
[1771430138670,5.74055685,83.178,83.132,10.8298]
[1771430139478,5.74055685,83.178,83.111,6.13612991]
[1771430140177,5.74055685,83.167,83.111,6.13612991]
[1771430140376,5.74055685,83.159,83.086,10.8358]
[1771430140582,5.74055685,83.159,83.087,6.13612991]
[1771430141169,11.11791541,83.192,83.101,6.13612991]
[1771430141170,5.74055685,83.174,83.101,6.13612991]
[1771430141681,5.74055685,83.172,83.101,6.13612991]
[1771430141883,5.74055685,83.158,83.101,6.13612991]
[1771430142680,5.74055685,83.155,83.101,6.13612991]
[1771430143576,5.74055685,83.155,83.081,6.13612991]
[1771430143877,5.74055685,83.125,83.066,6.13612991]
[1771430144577,10.831,83.124,83.076,6.13612991]
[1771430144779,6.19856272,83.14,83.076,6.13612991]
[1771430145079,5.74055685,83.15,83.076,6.13612991]
[1771430145280,6.19856272,83.16,83.091,5.63234714]
[1771430145480,5.6298265,83.167,83.091,5.63234714]
[1771430146181,5.6298265,83.167,83.104,5.63234714]
[1771430146580,5.6298265,83.167,83.1,75.64]
[1771430146581,6.19856272,83.18,83.106,5.63234714]
[1771430146780,5.6298265,83.183,83.111,5.63234714]
[1771430147675,5.6298265,83.183,83.116,5.63234714]
[1771430148172,5.6298265,83.183,83.118,5.63234714]
[1771430148377,5.6298265,83.198,83.119,5.63234714]
[1771430149183,5.6298265,83.189,83.138,5.63234714]
[1771430149371,5.6298265,83.189,83.121,5.63234714]
[1771430149981,2.08225397,83.18,83.13,2.08225397]
[1771430150180,2.08225397,83.18,83.13,7.71460111]
[1771430150780,2.08225397,83.18,83.131,5.63234714]
[1771430151977,5.6298265,83.189,83.131,5.63234714]
[1771430152276,2.08225397,83.19,83.141,5.63234714]
[1771430153080,2.08225397,83.19,83.143,5.63234714]
[1771430153480,7.71208047,83.16,83.11,2.08225397]
[1771430153676,2.08225397,83.15,83.106,5.63234714]
[1771430154277,2.08225397,83.15,83.038,179.0]
[1771430154278,2.08225397,83.13,83.078,5.63234714]
[1771430154478,2.08225397,83.11,83.069,10.838]
[1771430154680,2.08225397,83.1,83.042,5.63234714]
[1771430154878,2.08225397,83.09,83.075,0.05567259]
[1771430155486,2.08225397,83.1,83.075,0.05567259]
[1771430155888,10.8321,83.116,83.075,0.05567259]
[1771430156982,11.83735849,83.12,83.075,0.05567259]
[1771430157182,5.6298265,83.119,83.075,0.05567259]
[1771430157486,5.6298265,83.138,83.075,5.68801973]
[1771430159286,6.00094183,83.16,83.081,5.88543047]
[1771430159585,6.00094183,83.149,83.075,5.94110306]
[1771430160381,6.00094183,83.146,83.075,5.94110306]
[1771430161181,6.00094183,83.129,83.075,0.05567259]
[1771430161584,10.8321,83.116,83.075,0.05567259]
[1771430161789,6.00094183,83.115,83.075,0.05567259]
[1771430162290,6.20753199,83.11,83.075,0.05567259]
[1771430162684,10.833,83.108,83.075,0.05567259]
[1771430162991,6.00094183,83.109,83.04,5.88543047]
[1771430164693,6.00094183,83.107,83.04,5.88543047]
[1771430165982,6.00094183,83.107,83.042,5.88543047]
[1771430166185,6.20753199,83.11,83.042,5.88543047]
[1771430167281,6.20753199,83.11,83.04,6.20753199]
[1771430167282,6.20753199,83.11,83.059,16.72483047]
[1771430167492,6.00094183,83.124,83.059,16.72483047]
[1771430167694,6.00094183,83.124,83.06,5.88543047]
[1771430168190,6.00094183,83.142,83.068,5.88543047]
[1771430168392,6.00094183,83.142,83.06,6.20753199]
[1771430168393,6.00094183,83.142,83.07,5.88543047]
[1771430168782,6.00094183,83.142,83.085,10.8359]
[1771430169387,6.00094183,83.142,83.085,16.72133047]
[1771430169890,6.00094183,83.14,83.075,10.8373]
[1771430170790,6.00094183,83.14,83.076,5.88543047]
[1771430171289,6.00094183,83.14,83.085,10.8359]
[1771430171890,6.00094183,83.14,83.086,5.88543047]
[1771430172885,6.00094183,83.129,83.067,5.88543047]
[1771430173086,6.00094183,83.146,83.067,5.88543047]
[1771430173282,10.8285,83.143,83.089,10.8354]
[1771430173496,6.00094183,83.142,83.067,5.88543047]
[1771430173987,6.00094183,83.133,83.072,10.8376]
[1771430174293,14.92142535,83.181,83.051,5.88543047]
[1771430174294,6.00094183,83.109,83.051,5.88543047]
[1771430175381,6.00094183,83.109,83.064,10.8387]
[1771430175794,6.00094183,83.109,83.051,5.88543047]
[1771430178395,10.833,83.108,83.051,5.88543047]
[1771430179990,5.64080061,83.1,83.031,6.03675782]
[1771430182302,5.64080061,83.115,83.031,6.03675782]
[1771430182495,5.64080061,83.115,83.033,6.03675782]
[1771430183095,5.64080061,83.115,83.035,6.03675782]
[1771430183500,5.64080061,83.115,83.051,6.03675782]
[1771430183695,5.64080061,83.115,83.053,6.03675782]
[1771430184103,10.8325,83.112,83.053,6.03675782]
[1771430184402,10.8325,83.112,83.055,6.03675782]
[1771430185004,10.8325,83.112,83.057,6.03675782]
[1771430186399,10.8315,83.12,83.06,6.03675782]
[1771430186602,10.8315,83.12,83.062,6.03675782]
[1771430186800,5.64080061,83.132,83.062,6.03675782]
[1771430187007,5.64080061,83.132,83.063,6.03675782]
[1771430187308,10.8312,83.122,83.063,6.03675782]
[1771430187496,10.8312,83.122,83.065,6.03675782]
[1771430188703,5.64080061,83.109,83.065,6.03675782]
[1771430189305,75.66,83.142,83.065,6.03675782]
[1771430189306,5.64080061,83.123,83.065,6.03675782]
[1771430189902,5.64080061,83.123,83.075,6.03675782]
[1771430190804,10.8296,83.135,83.083,6.03675782]
[1771430191109,5.64080061,83.148,83.083,6.03675782]
[1771430191406,10.8313,83.121,83.083,6.03675782]
[1771430191604,10.8313,83.121,83.071,6.03675782]
[1771430192310,10.8313,83.121,83.072,10.8377]
[1771430192606,10.8321,83.115,83.073,6.03675782]
[1771430192905,5.64080061,83.127,83.073,6.03675782]
[1771430193110,10.8291,83.139,83.09,6.03675782]
[1771430194912,10.8291,83.139,83.092,6.03675782]
[1771430195313,10.8291,83.139,83.094,16.87145782]
[1771430195908,10.8291,83.139,83.095,6.03675782]
[1771430196318,10.8291,83.139,83.098,10.8342]
[1771430197312,5.64080061,83.144,83.103,10.8336]
[1771430197719,5.64080061,83.144,83.095,6.03675782]
[1771430197908,5.64080061,83.144,83.103,10.8336]
[1771430198919,5.64080061,83.14,83.068,6.03675782]
[1771430199115,5.64080061,83.129,83.068,6.03675782]
[1771430199610,10.8318,83.118,83.07,10.8379]
[1771430199816,5.64080061,83.117,83.07,10.8379]
[1771430200921,6.20056632,83.13,83.078,6.03675782]
[1771430201418,10.8321,83.116,83.078,6.03675782]
[1771430203622,10.831,83.124,83.079,6.03675782]
[1771430203821,6.20056632,83.15,83.06,6.20056632]
[1771430203822,5.64080061,83.131,83.064,6.03675782]
[1771430204022,5.64080061,83.129,83.064,6.03675782]
[1771430204524,5.64080061,83.129,83.065,6.03675782]
[1771430205326,10.8332,83.107,83.065,6.03675782]
[1771430207226,6.09842353,83.116,83.065,6.03675782]
[1771430208626,6.09842353,83.116,83.057,75.66]
[1771430208828,6.09842353,83.104,83.057,75.66]
[1771430209329,10.8337,83.103,83.056,10.8398]
[1771430209721,10.8337,83.103,83.059,10.8393]
[1771430209923,10.8346,83.097,83.06,5.78763767]
[1771430210124,6.09842353,83.104,83.06,5.78763767]
[1771430210318,6.09842353,83.104,83.062,10.839]
[1771430210528,10.8344,83.098,83.06,5.78763767]
[1771430210822,6.09842353,83.104,83.061,10.8391]
[1771430211528,16.93202353,83.104,83.06,5.78763767]
[1771430212124,10.8344,83.098,83.06,5.78763767]
[1771430212326,6.09842353,83.121,83.06,5.78763767]
[1771430213123,10.8325,83.112,83.076,10.8371]
[1771430213825,10.8325,83.112,83.077,5.78763767]
[1771430215326,10.8325,83.112,83.076,10.8371]
[1771430216831,10.8325,83.112,83.077,5.78763767]
[1771430217826,10.8325,83.112,83.076,10.8371]
[1771430217827,10.8314,83.121,83.086,5.95609869]
[1771430218526,10.8321,83.116,83.081,10.8365]
[1771430218729,6.04289911,83.121,83.075,75.68]
[1771430219326,6.04289911,83.121,83.072,5.95609869]
[1771430220032,2.0847738,83.12,83.072,5.95609869]
[1771430220237,10.8321,83.116,83.081,10.8365]
[1771430220434,10.8321,83.116,83.065,75.68]
[1771430220435,6.04289911,83.135,83.09,2.0847738]
[1771430221534,2.0847738,83.13,83.082,5.95609869]
[1771430221731,10.8311,83.123,83.084,5.95609869]
[1771430222737,10.8311,83.123,83.085,10.836]
[1771430222938,10.8311,83.123,83.085,16.79209869]
[1771430223337,10.8318,83.118,83.08,2.0847738]
[1771430224343,10.8318,83.118,83.081,10.8365]
[1771430224640,6.04289911,83.122,83.081,16.79259869]
[1771430224837,6.04289911,83.122,83.081,5.95609869]
[1771430225037,10.8322,83.115,83.081,5.95609869]
[1771430225342,6.04289911,83.122,83.081,5.95609869]
[1771430226135,10.8319,83.117,83.082,10.8364]
[1771430230339,10.8329,83.109,83.08,2.0847738]
[1771430230543,6.04289911,83.108,83.066,75.68]
[1771430230739,6.04289911,83.108,83.067,75.68]
[1771430231451,6.04289911,83.099,83.05,2.0847738]